[Event "Arsen Yeghiazaryan Memorial 2022"]
[Site "Yerevan"]
[Date "2022.07.08"]
[Round "8.3"]
[White "Hayrapetyan, Hovik"]
[Black "Atakhan, Abtin"]
[Result "1/2-1/2"]
[ECO "D85"]
[WhiteElo "2481"]
[BlackElo "2344"]
[Annotator "RC"]
[PlyCount "27"]
[EventDate "2022.06.30"]
[EventType "tourn"]
[EventCountry "ARM"]
[SourceTitle "playchess.com"]
[Source "ChessBase"]
[SourceQuality "1"]
[TimeControl "40/5400+30:1800+30"]

1. d4 {[%emt 0:00:04]} Nf6 {[%emt 0:04:05]} 2. c4 {[%emt 0:00:09]} g6 {[%emt 0:00:35]} 3. Nc3 {[%emt 0:00:44]} d5 {[%emt 0:00:23]} 4. cxd5 {[%emt 0:00:35]} Nxd5 {[%emt 0:00:07]} 5. e4 {[%emt 0:00:03]} Nxc3 {[%emt 0:00:08]} 6. bxc3 {[%emt 0:00:05]} Bg7 {[%emt 0:00:06]} 7. Nf3 {[%emt 0:00:22]} c5 {[%emt 0:00:06]} 8. Rb1 {[%emt 0:00:30]} O-O {[%emt 0:00:18]} 9. Be2 {[%emt 0:00:04]} cxd4 {[%emt 0:00:12]} 10. cxd4 {[%emt 0:00:06]} Qa5+ {[%emt 0:00:05]} 11. Bd2 {[%emt 0:00:04]} Qxa2 {[%emt 0:00:09]} 12. O-O {[%emt 0:00:03]} Bg4 {[%emt 0:00:11]} 13. Rxb7 {[%emt 0:04:14]} Bxf3 {[%emt 0:00:10]} 14. Bxf3 {[%emt 0:00:13]} 1/2-1/2

[Event "Arsen Yeghiazaryan Memorial 2022"]
[Site "Yerevan"]
[Date "2022.07.08"]
[Round "8.4"]
[White "Yeremyan, Alen"]
[Black "Nazari, Arad"]
[Result "1/2-1/2"]
[ECO "D79"]
[WhiteElo "2233"]
[BlackElo "2401"]
[Annotator "RC"]
[PlyCount "74"]
[EventDate "2022.06.30"]
[EventType "tourn"]
[EventCountry "ARM"]
[SourceTitle "playchess.com"]
[Source "ChessBase"]
[SourceQuality "1"]
[TimeControl "40/5400+30:1800+30"]

1. d4 {[%emt 0:00:05]} Nf6 {[%emt 0:04:07]} 2. c4 {[%emt 0:00:11]} g6 {[%emt 0:00:05]} 3. g3 {[%emt 0:00:11]} c6 {[%emt 0:01:52]} 4. Bg2 {[%emt 0:00:56]} d5 {[%emt 0:00:05]} 5. Nf3 {[%emt 0:00:37]} Bg7 {[%emt 0:00:06]} 6. O-O {[%emt 0:00:54]} O-O {[%emt 0:00:05]} 7. Ne5 {[%emt 0:00:43]} Ng4 {[%emt 0:02:09]} 8. Nxg4 {[%emt 0:00:32]} Bxg4 {[%emt 0:00:08]} 9. cxd5 {[%emt 0:00:01]} cxd5 {[%emt 0:00:09]} 10. Nc3 {[%emt 0:00:03]} Nc6 {[%emt 0:00:39]} 11. h3 {[%emt 0:00:21]} Bd7 {[%emt 0:04:29]} 12. e3 {[%emt 0:02:45]} e6 {[%emt 0:00:06]} 13. b3 {[%emt 0:00:15]} Re8 {[%emt 0:06:06]} 14. Bb2 {[%emt 0:00:37]} Rc8 {[%emt 0:01:44]} 15. Rc1 {[%emt 0:01:56]} Ne7 {[%emt 0:06:21]} 16. Qd2 {[%emt 0:02:45]} Nf5 {[%emt 0:00:43]} 17. Ne2 {[%emt 0:00:28]} Qb6 {[%emt 0:02:16]} 18. Nf4 {[%emt 0:04:29]} Qa6 {[%emt 0:04:01]} 19. Bc3 {[%emt 0:03:54]} b6 {[%emt 0:05:50]} 20. Bb4 {[%emt 0:01:47]} Qb7 {[%emt 0:10:36]} 21. Rfe1 {[%emt 0:00:34]} Rxc1 {[%emt 0:00:22]} 22. Rxc1 {[%emt 0:00:02]} Rc8 {[%emt 0:00:10]} 23. Bf1 {[%emt 0:01:03]} a5 {[%emt 0:03:31]} 24. Ba3 {[%emt 0:00:40]} Rc6 {[%emt 0:05:45]} 25. Nd3 {[%emt 0:01:31]} Nd6 {[%emt 0:02:48]} 26. Rxc6 {[%emt 0:03:16]} Qxc6 {[%emt 0:00:06]} 27. Ne5 {[%emt 0:02:11]} Bxe5 {[%emt 0:00:22]} 28. dxe5 {[%emt 0:00:02]} Ne4 {[%emt 0:00:12]} 29. Qd3 {[%emt 0:02:59]} Qc3 {[%emt 0:11:02]} 30. f3 {[%emt 0:10:01]} Qxd3 {[%emt 0:00:55]} 31. Bxd3 {[%emt 0:00:02]} Nc3 {[%emt 0:00:14]} 32. Bd6 {[%emt 0:03:19]} Nxa2 {[%emt 0:00:14]} 33. Bc7 {[%emt 0:00:51]} a4 {[%emt 0:07:27]} 34. bxa4 {[%emt 0:00:08]} Bxa4 {[%emt 0:00:30]} 35. Bxb6 {[%emt 0:00:30]} Bb3 {[%emt 0:00:30]} 36. Ba5 {[%emt 0:00:30]} Ba4 {[%emt 0:00:19]} 37. Bb6 {[%emt 0:01:31]} Bb3 {[%emt 0:02:07]} 1/2-1/2

[Event "Arsen Yeghiazaryan Memorial 2022"]
[Site "Yerevan"]
[Date "2022.07.08"]
[Round "8.5"]
[White "Morchiashvili, Bachana"]
[Black "Yeritsyan, Hayk"]
[Result "1/2-1/2"]
[ECO "D26"]
[WhiteElo "2305"]
[BlackElo "2249"]
[Annotator "RC"]
[PlyCount "110"]
[EventDate "2022.06.30"]
[EventType "tourn"]
[EventCountry "ARM"]
[SourceTitle "playchess.com"]
[Source "ChessBase"]
[SourceQuality "1"]
[TimeControl "40/5400+30:1800+30"]

1. d4 {[%emt 0:00:04]} d5 {[%emt 0:00:52]} 2. Nf3 {[%emt 0:00:11]} Nf6 {[%emt 0:00:06]} 3. c4 {[%emt 0:00:08]} e6 {[%emt 0:00:06]} 4. e3 {[%emt 0:03:58]} a6 {[%emt 0:01:09]} 5. a3 {[%emt 0:04:59]} dxc4 {[%emt 0:01:12]} 6. Bxc4 {[%emt 0:00:08]} b5 {[%emt 0:00:13]} 7. Bd3 {[%emt 0:00:49]} Bb7 {[%emt 0:00:07]} 8. O-O {[%emt 0:01:20]} Nbd7 {[%emt 0:00:40]} 9. b4 {[%emt 0:03:58]} Bd6 {[%emt 0:03:25]} 10. Bb2 {[%emt 0:00:47]} Qe7 {[%emt 0:05:32]} 11. Nbd2 {[%emt 0:10:41]} e5 {[%emt 0:02:19]} 12. e4 {[%emt 0:00:23]} O-O {[%emt 0:18:15]} 13. Re1 {[%emt 0:00:42]} Rfe8 {[%emt 0:03:04]} 14. Rc1 {[%emt 0:08:25]} Rad8 {[%emt 0:03:43]} 15. Nb3 {[%emt 0:05:20]} exd4 {[%emt 0:07:35]} 16. Na5 {[%emt 0:08:27]} Ba8 {[%emt 0:01:23]} 17. e5 {[%emt 0:03:21]} Bxe5 {[%emt 0:02:50]} 18. Nc6 {[%emt 0:09:56]} Bxc6 {[%emt 0:04:34]} 19. Rxc6 {[%emt 0:00:26]} Nd5 {[%emt 0:14:19]} 20. Bxd4 {[%emt 0:05:39]} Nf4 {[%emt 0:00:27]} 21. Bb1 {[%emt 0:04:27]} Qf8 {[%emt 0:06:41]} 22. Qc2 {[%emt 0:01:43]} g6 {[%emt 0:00:21]} 23. Bxe5 {[%emt 0:01:51]} Nd3 {[%emt 0:04:05]} 24. Qxd3 {[%emt 0:02:07]} Nxe5 {[%emt 0:00:05]} 25. Rxe5 {[%emt 0:00:20]} Rxe5 {[%emt 0:01:53]} 26. Nxe5 {[%emt 0:00:07]} Rxd3 {[%emt 0:00:03]} 27. Bxd3 {[%emt 0:01:05]} Qd8 {[%emt 0:00:27]} 28. Bf1 {[%emt 0:00:35]} Qd5 {[%emt 0:02:38]} 29. Rc5 {[%emt 0:01:45]} Qb3 {[%emt 0:00:42]} 30. Rxc7 {[%emt 0:00:42]} Qxa3 {[%emt 0:00:03]} 31. Nd3 {[%emt 0:01:44]} Kg7 {[%emt 0:00:27]} 32. Ra7 {[%emt 0:00:32]} h5 {[%emt 0:00:14]} 33. h4 {[%emt 0:00:10]} Kg8 {[%emt 0:01:15]} 34. g3 {[%emt 0:00:06]} Kf8 {[%emt 0:00:26]} 35. Kg2 {[%emt 0:00:29]} Qa2 {[%emt 0:00:30]} 36. Nc5 {[%emt 0:01:28]} Qd2 {[%emt 0:03:34]} 37. Nxa6 {[%emt 0:02:59]} Kg7 {[%emt 0:00:11]} 38. Kg1 {[%emt 0:00:55]} g5 {[%emt 0:00:55]} 39. hxg5 {[%emt 0:00:09]} Qxg5 {[%emt 0:00:12]} 40. Nc5 {[%emt 0:00:00]} Qg4 {[%emt 0:00:00]} 41. Nd3 {[%emt 0:01:34]} Qf5 {[%emt 0:01:22]} 42. Rc7 {[%emt 0:02:38]} h4 {[%emt 0:00:16]} 43. Rc5 {[%emt 0:00:55]} Qg4 {[%emt 0:00:15]} 44. Ne5 {[%emt 0:05:13]} Qxb4 {[%emt 0:00:18]} 45. Rxb5 {[%emt 0:00:08]} Qe4 {[%emt 0:00:23]} 46. gxh4 {[%emt 0:03:15]} f6 {[%emt 0:00:16]} 47. Nd7 {[%emt 0:05:57]} Qg4+ {[%emt 0:00:49]} 48. Bg2 {[%emt 0:00:04]} Qd1+ {[%emt 0:00:13]} 49. Kh2 {[%emt 0:00:20]} Qd6+ {[%emt 0:00:04]} 50. Kg1 {[%emt 0:03:54]} Qd1+ {[%emt 0:00:08]} 51. Kh2 {[%emt 0:00:39]} Qd6+ {[%emt 0:00:07]} 52. Kh1 {[%emt 0:00:16]} Qd1+ {[%emt 0:00:08]} 53. Kh2 {[%emt 0:00:07]} Qd6+ {[%emt 0:00:04]} 54. Kg1 {[%emt 0:00:16]} Qd1+ {[%emt 0:00:08]} 55. Kh2 {[%emt 0:01:27]} Qd6+ {[%emt 0:01:36]} 1/2-1/2

[Event "Arsen Yeghiazaryan Memorial 2022"]
[Site "Yerevan"]
[Date "2022.07.09"]
[Round "9.1"]
[White "Agasarov, Benik"]
[Black "Yeremyan, Alen"]
[Result "0-1"]
[ECO "B31"]
[WhiteElo "2225"]
[BlackElo "2233"]
[Annotator "RC"]
[PlyCount "86"]
[EventDate "2022.06.30"]
[EventType "tourn"]
[EventCountry "ARM"]
[SourceTitle "playchess.com"]
[Source "ChessBase"]
[SourceQuality "1"]
[TimeControl "40/5400+30:1800+30"]

1. e4 {[%emt 0:00:05]} c5 {[%emt 0:00:12]} 2. Nf3 {[%emt 0:00:05]} Nc6 {[%emt 0:00:05]} 3. Bb5 {[%emt 0:00:05]} g6 {[%emt 0:00:37]} 4. O-O {[%emt 0:00:07]} Bg7 {[%emt 0:00:04]} 5. Bxc6 {[%emt 0:00:05]} dxc6 {[%emt 0:00:05]} 6. d3 {[%emt 0:00:04]} b6 {[%emt 0:00:51]} 7. h3 {[%emt 0:00:08]} Qc7 {[%emt 0:01:14]} 8. a4 {[%emt 0:01:34]} a5 {[%emt 0:00:01]} 9. e5 {[%emt 0:04:02]} Be6 {[%emt 0:10:39]} 10. Re1 {[%emt 0:07:18]} h6 {[%emt 0:01:40]} 11. Nc3 {[%emt 0:01:32]} g5 {[%emt 0:02:26]} 12. Qe2 {[%emt 0:00:51]} O-O-O {[%emt 0:02:05]} 13. Bd2 {[%emt 0:05:13]} g4 {[%emt 0:06:54]} 14. hxg4 {[%emt 0:00:10]} Bxg4 {[%emt 0:01:12]} 15. Qe4 {[%emt 0:02:08]} h5 {[%emt 0:01:25]} 16. Nd1 {[%emt 0:38:33]} Nh6 {[%emt 0:02:59]} 17. Ne3 {[%emt 0:01:13]} e6 {[%emt 0:04:23]} 18. Bc3 {[%emt 0:02:07]} Rhg8 {[%emt 0:02:47]} 19. Ng5 {[%emt 0:12:03]} Bf8 {[%emt 0:06:14]} 20. Nxg4 {[%emt 0:05:44]} hxg4 {[%emt 0:03:40]} 21. Bd2 {[%emt 0:03:07]} Rg6 {[%emt 0:02:40]} 22. Qc4 {[%emt 0:07:21]} Kb7 {[%emt 0:03:59]} 23. c3 {[%emt 0:02:44]} Qd7 {[%emt 0:01:34]} 24. Ne4 {[%emt 0:00:18]} Qd5 {[%emt 0:06:41]} 25. Bg5 {[%emt 0:01:06]} Rc8 {[%emt 0:06:48]} 26. Bxh6 {[%emt 0:00:37]} Rxh6 {[%emt 0:00:26]} 27. Qxd5 {[%emt 0:01:09]} cxd5 {[%emt 0:00:18]} 28. Nf6 {[%emt 0:00:03]} Rg6 {[%emt 0:01:01]} 29. c4 {[%emt 0:00:06]} Be7 {[%emt 0:01:41]} 30. Nh5 {[%emt 0:01:41]} Rg5 {[%emt 0:03:07]} 31. Nf4 {[%emt 0:00:51]} Rf5 {[%emt 0:00:47]} 32. g3 {[%emt 0:00:04]} Bg5 {[%emt 0:00:20]} 33. Ng2 {[%emt 0:00:50]} Rd8 {[%emt 0:01:14]} 34. Ne3 {[%emt 0:00:57]} Bxe3 {[%emt 0:05:37]} 35. Rxe3 {[%emt 0:00:08]} dxc4 {[%emt 0:00:10]} 36. dxc4 {[%emt 0:00:15]} Rd2 {[%emt 0:00:06]} 37. Rf1 {[%emt 0:00:05]} Rxb2 {[%emt 0:01:49]} 38. f3 {[%emt 0:02:47]} Rc2 {[%emt 0:00:55]} 39. Re4 {[%emt 0:00:33]} gxf3 {[%emt 0:02:31]} 40. g4 {[%emt 0:00:00]} Rg2+ {[%emt 0:00:00]} 41. Kh1 {[%emt 0:00:09]} Rg5 {[%emt 0:00:36]} 42. Rxf3 {[%emt 0:00:19]} R2xg4 {[%emt 0:01:01]} 43. Rxf7+ {[%emt 0:00:08]} Ka6 {[%emt 0:00:30]} 0-1

[Event "Arsen Yeghiazaryan Memorial 2022"]
[Site "Yerevan"]
[Date "2022.07.09"]
[Round "9.3"]
[White "Yeritsyan, Hayk"]
[Black "Hayrapetyan, Hovik"]
[Result "0-1"]
[ECO "B90"]
[WhiteElo "2249"]
[BlackElo "2481"]
[Annotator "RC"]
[PlyCount "114"]
[EventDate "2022.06.30"]
[EventType "tourn"]
[EventCountry "ARM"]
[SourceTitle "playchess.com"]
[Source "ChessBase"]
[SourceQuality "1"]
[TimeControl "40/5400+30:1800+30"]

1. e4 {[%emt 0:00:53]} c5 {[%emt 0:00:11]} 2. Nf3 {[%emt 0:00:11]} d6 {[%emt 0:00:03]} 3. d4 {[%emt 0:00:26]} cxd4 {[%emt 0:00:04]} 4. Nxd4 {[%emt 0:00:04]} Nf6 {[%emt 0:00:03]} 5. Nc3 {[%emt 0:00:18]} a6 {[%emt 0:00:01]} 6. Be3 {[%emt 0:00:16]} e5 {[%emt 0:00:07]} 7. Nb3 {[%emt 0:00:15]} Be7 {[%emt 0:02:22]} 8. f3 {[%emt 0:02:30]} Be6 {[%emt 0:01:29]} 9. Qd2 {[%emt 0:00:12]} h5 {[%emt 0:00:27]} 10. Nd5 {[%emt 0:00:49]} Bxd5 {[%emt 0:12:41]} 11. exd5 {[%emt 0:00:15]} Nbd7 {[%emt 0:00:03]} 12. O-O-O {[%emt 0:07:03]} Rc8 {[%emt 0:08:57]} 13. Qf2 {[%emt 0:01:07]} Qc7 {[%emt 0:02:48]} 14. Kb1 {[%emt 0:01:11]} b5 {[%emt 0:00:41]} 15. Rg1 {[%emt 0:36:11]} Bd8 {[%emt 0:09:17]} 16. g4 {[%emt 0:04:45]} hxg4 {[%emt 0:15:35]} 17. fxg4 {[%emt 0:00:25]} Ne4 {[%emt 0:13:58]} 18. Qg2 {[%emt 0:01:16]} Bg5 {[%emt 0:10:02]} 19. Bxg5 {[%emt 0:04:28]} Nxg5 {[%emt 0:00:06]} 20. Bd3 {[%emt 0:00:44]} Nh3 {[%emt 0:05:29]} 21. Rge1 {[%emt 0:00:38]} Kf8 {[%emt 0:03:14]} 22. Qd2 {[%emt 0:09:56]} Nf4 {[%emt 0:01:33]} 23. Be4 {[%emt 0:02:22]} Nf6 {[%emt 0:00:52]} 24. Bf5 {[%emt 0:01:04]} Rd8 {[%emt 0:00:16]} 25. g5 {[%emt 0:02:44]} N6xd5 {[%emt 0:00:50]} 26. g6 {[%emt 0:01:34]} f6 {[%emt 0:01:23]} 27. Rf1 {[%emt 0:02:22]} Rh4 {[%emt 0:03:20]} 28. Qe1 {[%emt 0:01:55]} Ng2 {[%emt 0:05:36]} 29. Qg3 {[%emt 0:03:00]} Nde3 {[%emt 0:00:01]} 30. Rde1 {[%emt 0:00:51]} Nxf5 {[%emt 0:02:20]} 31. Qxg2 {[%emt 0:01:12]} Ne7 {[%emt 0:00:01]} 32. Nd2 {[%emt 0:01:11]} Rh6 {[%emt 0:00:26]} 33. Ne4 {[%emt 0:00:17]} Rxg6 {[%emt 0:00:01]} 34. Qh3 {[%emt 0:00:34]} Qc8 {[%emt 0:01:16]} 35. Qh5 {[%emt 0:02:23]} Qg4 {[%emt 0:01:13]} 36. Qh8+ {[%emt 0:00:19]} Ng8 {[%emt 0:00:02]} 37. h3 {[%emt 0:00:31]} Qe6 {[%emt 0:01:01]} 38. Qh5 {[%emt 0:00:36]} Rh6 {[%emt 0:01:06]} 39. Ng5 {[%emt 0:00:28]} Qc4 {[%emt 0:00:32]} 40. Qf3 {[%emt 0:00:00]} Ne7 {[%emt 0:00:00]} 41. b3 {[%emt 0:01:42]} Qc8 {[%emt 0:05:01]} 42. Re3 {[%emt 0:02:45]} Kg8 {[%emt 0:00:53]} 43. Ne4 {[%emt 0:01:01]} d5 {[%emt 0:01:46]} 44. Nf2 {[%emt 0:00:38]} Qe6 {[%emt 0:02:28]} 45. Ng4 {[%emt 0:00:17]} Rg6 {[%emt 0:00:21]} 46. Ree1 {[%emt 0:00:09]} Rc8 {[%emt 0:01:07]} 47. Rg1 {[%emt 0:00:23]} Qf5 {[%emt 0:03:56]} 48. Qe2 {[%emt 0:00:17]} Rc3 {[%emt 0:00:42]} 49. h4 {[%emt 0:01:19]} Rh3 {[%emt 0:02:12]} 50. Qd1 {[%emt 0:03:10]} d4 {[%emt 0:02:53]} 51. Ref1 {[%emt 0:00:11]} Qe6 {[%emt 0:00:20]} 52. h5 {[%emt 0:00:09]} Nd5 {[%emt 0:00:51]} 53. Ka1 {[%emt 0:03:32]} Nc3 {[%emt 0:00:35]} 54. Nxf6+ {[%emt 0:00:40]} Rxf6 {[%emt 0:00:17]} 55. Rxf6 {[%emt 0:00:05]} Qxf6 {[%emt 0:00:02]} 56. Qg4 {[%emt 0:00:06]} Rf3 {[%emt 0:00:36]} 57. Kb2 {[%emt 0:00:16]} Rf2 {[%emt 0:03:13]} 0-1

[Event "Arsen Yeghiazaryan Memorial 2022"]
[Site "Yerevan"]
[Date "2022.07.09"]
[Round "9.4"]
[White "Nazari, Arad"]
[Black "Morchiashvili, Bachana"]
[Result "1/2-1/2"]
[ECO "E11"]
[WhiteElo "2401"]
[BlackElo "2305"]
[Annotator "RC"]
[PlyCount "92"]
[EventDate "2022.06.30"]
[EventType "tourn"]
[EventCountry "ARM"]
[SourceTitle "playchess.com"]
[Source "ChessBase"]
[SourceQuality "1"]
[TimeControl "40/5400+30:1800+30"]

1. d4 {[%emt 0:00:55]} Nf6 {[%emt 0:00:08]} 2. c4 {[%emt 0:00:03]} e6 {[%emt 0:01:43]} 3. Nf3 {[%emt 0:00:03]} d5 {[%emt 0:00:24]} 4. g3 {[%emt 0:00:07]} Bb4+ {[%emt 0:00:07]} 5. Bd2 {[%emt 0:00:22]} Be7 {[%emt 0:00:04]} 6. Bg2 {[%emt 0:00:27]} O-O {[%emt 0:00:04]} 7. O-O {[%emt 0:00:13]} c6 {[%emt 0:00:05]} 8. Qc2 {[%emt 0:00:46]} b6 {[%emt 0:00:20]} 9. Bg5 {[%emt 0:06:36]} Ba6 {[%emt 0:02:53]} 10. Nbd2 {[%emt 0:01:15]} Nbd7 {[%emt 0:00:50]} 11. Rac1 {[%emt 0:02:01]} Rc8 {[%emt 0:11:03]} 12. Rfd1 {[%emt 0:06:44]} h6 {[%emt 0:08:27]} 13. Bxf6 {[%emt 0:01:01]} Nxf6 {[%emt 0:02:27]} 14. Ne5 {[%emt 0:00:12]} Qe8 {[%emt 0:03:11]} 15. e4 {[%emt 0:05:51]} Bb7 {[%emt 0:25:05]} 16. Qa4 {[%emt 0:01:52]} a6 {[%emt 0:01:08]} 17. c5 {[%emt 0:00:30]} b5 {[%emt 0:01:15]} 18. Qa3 {[%emt 0:01:13]} Nd7 {[%emt 0:04:15]} 19. Nxd7 {[%emt 0:00:47]} Qxd7 {[%emt 0:00:02]} 20. exd5 {[%emt 0:00:09]} exd5 {[%emt 0:00:32]} 21. Re1 {[%emt 0:01:58]} Rce8 {[%emt 0:01:31]} 22. Qd3 {[%emt 0:00:24]} Bd8 {[%emt 0:01:04]} 23. b4 {[%emt 0:01:24]} a5 {[%emt 0:01:33]} 24. Nf3 {[%emt 0:04:12]} Rxe1+ {[%emt 0:02:05]} 25. Rxe1 {[%emt 0:00:06]} Re8 {[%emt 0:00:22]} 26. Ne5 {[%emt 0:00:47]} Qc8 {[%emt 0:01:09]} 27. Bf3 {[%emt 0:06:41]} Bc7 {[%emt 0:03:04]} 28. bxa5 {[%emt 0:02:15]} f6 {[%emt 0:11:25]} 29. Bg4 {[%emt 0:02:39]} Qd8 {[%emt 0:00:34]} 30. Nf3 {[%emt 0:20:22]} Rxe1+ {[%emt 0:00:36]} 31. Nxe1 {[%emt 0:00:02]} Bxa5 {[%emt 0:01:34]} 32. Be6+ {[%emt 0:01:00]} Kf8 {[%emt 0:03:10]} 33. Ng2 {[%emt 0:01:05]} Qe8 {[%emt 0:01:31]} 34. Qf5 {[%emt 0:01:46]} Ke7 {[%emt 0:00:28]} 35. Nf4 {[%emt 0:02:22]} Kd8 {[%emt 0:03:22]} 36. h4 {[%emt 0:05:47]} Bd2 {[%emt 0:02:45]} 37. Ne2 {[%emt 0:02:14]} b4 {[%emt 0:05:09]} 38. Qd3 {[%emt 0:00:36]} Qxe6 {[%emt 0:01:35]} 39. Qxd2 {[%emt 0:00:02]} Qe4 {[%emt 0:01:14]} 40. Qxb4 {[%emt 0:00:00]} Qxe2 {[%emt 0:00:00]} 41. Qxb7 {[%emt 0:06:28]} Qe1+ {[%emt 0:00:40]} 42. Kg2 {[%emt 0:00:14]} Qe4+ {[%emt 0:00:24]} 43. f3 {[%emt 0:14:10]} Qc2+ {[%emt 0:03:14]} 44. Kh3 {[%emt 0:00:06]} Qf5+ {[%emt 0:00:07]} 45. Kg2 {[%emt 0:00:04]} Qc2+ {[%emt 0:00:05]} 46. Kh3 {[%emt 0:00:03]} Qf5+ {[%emt 0:00:06]} 1/2-1/2

[Event "Arsen Yeghiazaryan Memorial 2022"]
[Site "Yerevan"]
[Date "2022.07.09"]
[Round "9.5"]
[White "Alaverdyan, Gevorg"]
[Black "Quparadze, Giga"]
[Result "0-1"]
[ECO "B42"]
[WhiteElo "2336"]
[BlackElo "2482"]
[Annotator "RC"]
[PlyCount "76"]
[EventDate "2022.06.30"]
[EventType "tourn"]
[EventCountry "ARM"]
[SourceTitle "playchess.com"]
[Source "ChessBase"]
[SourceQuality "1"]
[TimeControl "40/5400+30:1800+30"]

1. e4 {[%emt 0:00:04]} c5 {[%emt 0:00:04]} 2. Nf3 {[%emt 0:00:05]} e6 {[%emt 0:00:03]} 3. d4 {[%emt 0:00:10]} cxd4 {[%emt 0:00:03]} 4. Nxd4 {[%emt 0:00:04]} a6 {[%emt 0:00:03]} 5. Bd3 {[%emt 0:00:41]} Ne7 {[%emt 0:00:05]} 6. O-O {[%emt 0:00:36]} g6 {[%emt 0:00:04]} 7. Bd2 {[%emt 0:06:17]} Bg7 {[%emt 0:01:03]} 8. Bc3 {[%emt 0:00:02]} e5 {[%emt 0:00:15]} 9. Nf3 {[%emt 0:04:34]} Nbc6 {[%emt 0:00:34]} 10. Bc4 {[%emt 0:00:22]} d6 {[%emt 0:00:07]} 11. a4 {[%emt 0:00:09]} O-O {[%emt 0:00:11]} 12. Qd3 {[%emt 0:00:07]} Be6 {[%emt 0:05:38]} 13. Rd1 {[%emt 0:00:18]} Qd7 {[%emt 0:00:48]} 14. Na3 {[%emt 0:04:11]} Rad8 {[%emt 0:00:24]} 15. Bd5 {[%emt 0:17:07]} Bg4 {[%emt 0:01:41]} 16. Bb3 {[%emt 0:01:24]} Nd4 {[%emt 0:00:59]} 17. Bxd4 {[%emt 0:01:12]} exd4 {[%emt 0:00:05]} 18. Nc4 {[%emt 0:03:53]} Qc7 {[%emt 0:00:11]} 19. h3 {[%emt 0:03:02]} Bxf3 {[%emt 0:00:09]} 20. Qxf3 {[%emt 0:00:02]} d5 {[%emt 0:00:05]} 21. exd5 {[%emt 0:00:15]} Nxd5 {[%emt 0:00:07]} 22. Re1 {[%emt 0:00:19]} Nb4 {[%emt 0:00:38]} 23. Rad1 {[%emt 0:18:59]} Nxc2 {[%emt 0:00:22]} 24. Bxc2 {[%emt 0:06:39]} Qxc4 {[%emt 0:00:06]} 25. Bb3 {[%emt 0:00:25]} Qb4 {[%emt 0:00:06]} 26. Re4 {[%emt 0:00:33]} Kh8 {[%emt 0:00:08]} 27. Rde1 {[%emt 0:00:38]} f5 {[%emt 0:00:25]} 28. Re7 {[%emt 0:00:10]} d3 {[%emt 0:00:05]} 29. Qxb7 {[%emt 0:01:09]} Qxb7 {[%emt 0:01:38]} 30. Rxb7 {[%emt 0:00:02]} d2 {[%emt 0:00:10]} 31. Rd1 {[%emt 0:09:06]} Bxb2 {[%emt 0:00:16]} 32. Bc4 {[%emt 0:00:14]} Rfe8 {[%emt 0:00:28]} 33. Kf1 {[%emt 0:04:39]} Bc3 {[%emt 0:00:09]} 34. Be2 {[%emt 0:00:02]} a5 {[%emt 0:00:05]} 35. Rc7 {[%emt 0:02:59]} Bb4 {[%emt 0:00:13]} 36. g3 {[%emt 0:00:03]} Re5 {[%emt 0:00:11]} 37. Bf3 {[%emt 0:00:33]} Re1+ {[%emt 0:00:06]} 38. Kg2 {[%emt 0:00:01]} Rd3 {[%emt 0:00:10]} 0-1